bitfinex/quotes_SOLUSD_20251124
["timestamp","ask_amount","ask_price","bid_price","bid_amount"]
[1763943789518,5.71233444,130.06,130.01,5.71233444]
[1763943789742,6.41233444,130.05,130.0,3.44]
[1763943790322,0.7,130.04,130.0,9.15233444]
[1763943790830,0.7,130.04,130.0,3.44]
[1763943791128,6.41233444,130.04,129.99,5.71233444]
[1763943791821,6.41233444,130.04,129.98,3.44]
[1763943791822,5.71233444,130.02,129.98,3.44]
[1763943792305,0.7,130.01,129.96,5.71233444]
[1763943792499,0.7,130.01,129.96,23.83329444]
[1763943792709,0.7,130.01,129.97,5.71233444]
[1763943793628,0.7,130.01,129.92,0.72]
[1763943793834,0.7,130.01,129.97,5.71233444]
[1763943794130,0.7,130.04,130.0,15.50116213]
[1763943794308,0.7,130.07,130.02,5.71233444]
[1763943794515,6.41233444,130.07,130.02,5.71233444]
[1763943794715,18.82096,130.07,130.03,5.71233444]
[1763943795030,0.7,130.06,130.03,5.71233444]
[1763943795252,0.7,130.06,129.99,18.12096]
[1763943795554,5.71233444,130.04,129.99,5.71233444]
[1763943795704,5.71233444,130.04,129.97,3.44]
[1763943795705,5.71233444,130.03,129.98,5.71233444]
[1763943796247,0.67,130.02,129.99,5.71233444]
[1763943796415,0.67,130.02,129.97,3.44]
[1763943796416,5.71233444,130.06,130.01,5.71233444]
[1763943796608,0.67,130.05,130.02,5.71233444]
[1763943796938,0.67,130.05,130.01,5.71233444]
[1763943797906,0.67,130.05,130.02,5.71233444]
[1763943798110,0.67,130.05,130.03,5.71233444]
[1763943798324,0.67,130.05,130.01,9.78882769]
[1763943798542,0.67,130.05,130.03,5.71233444]
[1763943798919,0.67,130.05,130.01,9.78882769]
[1763943799118,0.67,130.05,130.03,5.71233444]
[1763943800156,0.67,130.05,130.04,5.71233444]
[1763943800663,0.67,130.07,130.04,5.71233444]
[1763943800819,0.67,130.07,130.05,5.71233444]
[1763943801020,0.67,130.07,130.02,8.37092659]
[1763943801021,0.67,130.07,130.06,5.71233444]
[1763943801251,0.2,130.08,130.06,5.71233444]
[1763943801437,0.2,130.08,130.07,5.71233444]
[1763943801625,0.2,130.08,130.07,33.62212213]
[1763943801821,0.2,130.08,130.07,34.30212213]
[1763943802036,0.2,130.11,130.07,34.30212213]
[1763943802037,0.2,130.11,130.08,27.90978769]
[1763943802227,0.2,130.11,130.1,33.62212213]
[1763943802641,0.67,130.17,130.1,41.98851721]
[1763943802850,0.67,130.17,130.12,9.78882769]
[1763943803124,0.67,130.17,130.12,5.71233444]
[1763943803327,0.67,130.17,130.1,18.12096]
[1763943803328,0.67,130.17,130.13,5.71233444]
[1763943804525,0.67,130.17,130.14,5.71233444]
[1763943804721,0.67,130.17,130.13,5.71233444]
[1763943805062,0.67,130.17,130.15,5.71233444]
[1763943805433,0.67,130.17,130.14,5.71233444]
[1763943805829,0.67,130.17,130.15,5.71233444]
[1763943806245,0.67,130.17,130.14,5.71233444]
[1763943806445,0.2,130.21,130.15,9.78882769]
[1763943806729,0.67,130.2,130.14,9.78882769]
[1763943807251,0.67,130.2,130.11,3.07964738]
[1763943807425,0.67,130.2,130.14,5.71233444]
[1763943807627,6.38233444,130.2,130.15,5.71233444]
[1763943807828,0.67,130.19,130.17,5.71233444]
[1763943808244,0.87,130.21,130.18,5.71233444]
[1763943808434,0.2,130.21,130.2,5.71233444]
[1763943808649,0.2,130.21,130.19,5.71233444]
[1763943808839,0.2,130.21,130.16,0.68]
[1763943808840,0.87,130.21,130.15,10.46882769]
[1763943809040,0.87,130.21,130.18,5.71233444]
[1763943809435,0.67,130.2,130.17,5.71233444]
[1763943810250,0.67,130.2,130.18,5.71233444]
[1763943810557,0.67,130.2,130.17,5.71233444]
[1763943810757,6.38233444,130.2,130.15,9.78882769]
[1763943810962,6.38233444,130.2,130.15,15.50116213]
[1763943811146,0.67,130.19,130.15,15.50116213]
[1763943811348,0.67,130.19,130.16,5.71233444]
[1763943811650,0.67,130.19,130.17,5.71233444]
[1763943813259,0.67,130.19,130.14,3.44]
[1763943813472,0.67,130.19,130.15,5.71233444]
[1763943813671,0.67,130.19,130.16,5.71233444]
[1763943814047,0.87,130.21,130.18,5.71233444]
[1763943814247,0.87,130.21,130.19,5.71233444]
[1763943814655,0.87,130.21,130.2,5.71233444]
[1763943815050,0.87,130.21,130.19,5.71233444]
[1763943816100,0.67,130.2,130.18,5.71233444]
[1763943817086,0.2,130.21,130.19,5.71233444]
[1763943817387,0.87,130.21,130.19,5.71233444]
[1763943817881,0.67,130.2,130.18,5.71233444]
[1763943818080,0.67,130.2,130.13,13.22882769]
[1763943818291,0.67,130.2,130.16,5.71233444]
[1763943818587,0.67,130.2,130.17,9.66466905]
[1763943818781,0.67,130.2,130.13,32.02978769]
[1763943818980,10.33466905,130.2,130.13,13.22882769]
[1763943819199,9.66466905,130.18,130.13,9.78882769]
[1763943819383,9.66466905,130.18,130.13,9.66466905]
[1763943819697,0.67,130.17,130.13,9.66466905]
[1763943820882,9.66466905,130.14,130.06,0.68]
[1763943821086,18.12096,130.15,130.08,9.66466905]
[1763943821087,9.66466905,130.12,130.08,9.66466905]
[1763943821459,0.67,130.11,130.07,9.66466905]
[1763943821662,7.33466905,130.11,130.06,19.45349674]
[1763943821882,7.33466905,130.11,130.05,3.44]
[1763943822087,9.66466905,130.1,130.05,13.10466905]
[1763943822512,9.66466905,130.11,130.06,9.66466905]
[1763943823175,3.44,130.16,130.07,19.45349674]
[1763943823498,0.2,130.21,130.12,9.66466905]
[1763943823662,9.66466905,130.17,130.13,9.66466905]
[1763943824002,0.2,130.21,130.14,4.20840325]
[1763943824003,0.91,130.21,130.14,4.20840325]
[1763943824161,0.71,130.2,130.17,9.66466905]
[1763943824785,0.71,130.2,130.18,9.66466905]
[1763943825200,0.71,130.2,130.19,9.66466905]
[1763943826273,0.71,130.2,130.16,9.66466905]
[1763943826582,0.71,130.2,130.17,9.66466905]
[1763943827869,0.71,130.2,130.14,3.44]
[1763943827870,0.71,130.2,130.18,9.66466905]
[1763943828708,0.71,130.2,130.19,9.66466905]
[1763943830895,0.2,130.21,130.19,9.66466905]
[1763943831098,0.2,130.21,130.2,9.66466905]
[1763943833215,0.2,130.21,130.2,20.15349674]
[1763943835587,0.2,130.21,130.2,27.83398829]
[1763943835805,0.2,130.21,130.2,20.15349674]
[1763943837392,0.2,130.21,130.2,27.83398829]
[1763943837918,0.2,130.21,130.2,20.15349674]
[1763943838602,0.2,130.21,130.2,23.59349674]
[1763943838918,0.2,130.21,130.2,41.71445674]
[1763943839107,0.2,130.21,130.2,38.27445674]
[1763943839308,0.2,130.21,130.2,41.01445674]
[1763943839621,0.2,130.21,130.2,41.71445674]
[1763943839818,0.2,130.26,130.24,9.78882769]
[1763943840124,0.2,130.26,130.25,23.59349674]
[1763943841123,0.2,130.26,130.25,20.15349674]
[1763943841308,0.2,130.26,130.25,22.89349674]
[1763943841694,0.2,130.26,130.25,23.59349674]
[1763943842126,0.2,130.26,130.25,9.66466905]
[1763943842297,0.92,130.26,130.24,9.66466905]
[1763943842627,0.92,130.26,130.22,3.44]
[1763943842628,0.2,130.26,130.25,9.66466905]
[1763943844111,0.92,130.26,130.25,9.66466905]
[1763943844314,0.2,130.26,130.25,9.66466905]
[1763943844519,0.2,130.26,130.25,20.15349674]
[1763943846712,0.2,130.26,130.25,23.59349674]
[1763943847425,0.2,130.26,130.25,31.27103992]
[1763943847604,0.2,130.26,130.25,32.03879423]
[1763943848000,0.2,130.26,130.25,24.36125105]
[1763943848205,0.2,130.26,130.25,32.03879423]
[1763943848617,0.2,130.26,130.25,24.36125105]
[1763943848835,0.2,130.26,130.25,23.59349674]
[1763943850235,0.2,130.26,130.25,41.71445674]
[1763943850416,18.12096,130.35,130.29,11.66466904]
[1763943850608,18.12096,130.35,130.31,9.66466905]
[1763943850934,18.12096,130.35,130.3,11.66466904]
[1763943851133,18.12096,130.35,130.31,9.66466905]
[1763943852608,18.12096,130.35,130.32,9.66466905]
[1763943852937,18.12096,130.35,130.31,9.66466905]
[1763943853325,9.66466905,130.38,130.31,9.66466905]
[1763943853326,18.12096,130.37,130.31,9.66466905]
[1763943853525,18.12096,130.37,130.33,9.66466905]
[1763943853730,0.69,130.39,130.33,9.66466905]
[1763943854236,0.69,130.39,130.34,9.66466905]
[1763943854436,13.30466905,130.41,130.32,1.99999999]
[1763943854437,0.2,130.41,130.36,9.66466905]
[1763943854615,0.2,130.41,130.37,9.66466905]
[1763943855034,0.2,130.41,130.35,5.43999999]
[1763943855035,0.2,130.41,130.38,9.66466905]
[1763943855210,0.2,130.41,130.4,9.66466905]
[1763943855745,0.2,130.41,130.4,21.45349673]
[1763943856037,0.2,130.41,130.4,9.66466905]
[1763943856337,0.2,130.41,130.4,11.66466904]
[1763943858122,0.2,130.41,130.4,22.13349673]
[1763943858346,0.2,130.5,130.44,1.99999999]
[1763943858548,0.2,130.5,130.46,9.66466905]
[1763943858751,18.12096,130.49,130.45,9.66466905]
[1763943859151,0.2,130.5,130.46,9.66466905]
[1763943859344,0.2,130.5,130.45,1.99999999]
[1763943859548,18.32096,130.5,130.46,9.66466905]
[1763943859848,0.2,130.5,130.48,9.66466905]
[1763943860044,0.2,130.5,130.47,11.66466904]
[1763943860762,18.12096,130.49,130.44,1.99999999]
[1763943861054,18.12096,130.49,130.45,9.66466905]
[1763943861255,18.12096,130.49,130.46,9.66466905]
[1763943861555,18.12096,130.49,130.45,9.66466905]
[1763943861769,18.12096,130.49,130.44,1.99999999]
[1763943861770,0.67,130.48,130.44,1.99999999]
[1763943861932,18.12096,130.49,130.45,9.66466905]
[1763943862130,18.12096,130.49,130.46,9.66466905]
[1763943862524,0.2,130.5,130.48,9.66466905]
[1763943862839,0.2,130.5,130.45,11.78882768]
[1763943862840,0.2,130.5,130.49,9.66466905]
[1763943864550,0.2,130.5,130.48,9.66466905]
[1763943864759,0.2,130.5,130.49,9.66466905]
[1763943865132,0.2,130.5,130.48,9.66466905]
[1763943865728,0.2,130.5,130.47,9.66466905]
[1763943865934,0.2,130.5,130.47,11.66466904]
[1763943866167,0.2,130.5,130.46,9.66466905]
[1763943866168,18.32096,130.5,130.46,9.66466905]
[1763943866349,18.32096,130.5,130.44,11.66466904]
[1763943866547,18.32096,130.5,130.43,11.66466904]
[1763943866548,27.98562905,130.5,130.43,11.66466904]
[1763943866848,18.12096,130.46,130.42,9.66466905]
[1763943867055,18.12096,130.46,130.43,1.99999999]
[1763943867358,18.12096,130.46,130.42,11.66466904]
[1763943867557,18.12096,130.46,130.41,11.66466904]
[1763943867732,18.12096,130.45,130.41,9.66466905]
[1763943867933,18.12096,130.44,130.4,9.66466905]
[1763943868347,10.65882769,130.5,130.42,1.99999999]
[1763943868659,18.12096,130.47,130.43,11.66466904]
[1763943869443,18.12096,130.48,130.44,9.66466905]
[1763943869639,18.12096,130.46,130.41,11.66466904]
[1763943870135,18.12096,130.46,130.4,9.66466905]
[1763943870332,0.67,130.45,130.4,9.66466905]
[1763943870847,0.67,130.45,130.38,1.99999999]
[1763943871158,18.12096,130.44,130.41,1.99999999]
[1763943871526,18.79096,130.44,130.41,1.99999999]
[1763943871756,0.67,130.48,130.41,1.99999999]
[1763943871939,0.67,130.48,130.44,9.66466905]
[1763943872264,0.87,130.5,130.46,9.66466905]
[1763943872556,18.99096,130.5,130.46,9.66466905]
[1763943872726,0.87,130.5,130.46,9.66466905]
[1763943872932,18.99096,130.5,130.46,9.66466905]
[1763943873855,0.87,130.5,130.46,9.66466905]
[1763943874062,0.87,130.5,130.45,1.99999999]
[1763943874270,18.99096,130.5,130.46,9.66466905]
[1763943874873,0.87,130.5,130.46,9.66466905]
[1763943875070,0.2,130.5,130.47,9.66466905]
[1763943877981,18.12096,130.49,130.45,9.66466905]
[1763943878165,18.12096,130.49,130.46,1.99999999]
[1763943878362,18.12096,130.49,130.45,9.66466905]
[1763943878571,18.79096,130.49,130.45,9.66466905]
[1763943878770,18.12096,130.47,130.43,1.99999999]
[1763943879091,18.12096,130.47,130.42,11.66466904]
[1763943879380,18.12096,130.47,130.41,9.66466905]
[1763943879381,0.67,130.46,130.41,9.66466905]
[1763943879586,0.67,130.46,130.42,1.99999999]
[1763943879894,18.79096,130.46,130.4,9.66466905]
[1763943880093,18.12096,130.45,130.41,9.66466905]
[1763943880270,18.12096,130.45,130.42,1.99999999]
[1763943880456,0.67,130.44,130.42,1.99999999]
[1763943881664,0.67,130.44,130.41,7.6563489]
[1763943881997,18.79096,130.44,130.4,5.65634891]
[1763943883063,0.67,130.43,130.4,5.65634891]
[1763943884381,0.67,130.43,130.39,1.99999999]
[1763943884382,21.56096,130.45,130.41,5.65634891]
[1763943884567,0.67,130.43,130.4,5.65634891]
[1763943884769,0.67,130.43,130.39,5.65634891]
[1763943884970,0.67,130.43,130.39,7.6563489]
[1763943885177,0.67,130.43,130.38,7.6563489]
[1763943885487,0.67,130.43,130.39,5.65634891]
[1763943885788,0.67,130.43,130.38,1.99999999]
[1763943885969,18.12096,130.41,130.37,7.6563489]
[1763943886171,0.68,130.42,130.39,5.65634891]
[1763943886378,0.68,130.44,130.38,7.6563489]
[1763943886580,18.12096,130.43,130.4,5.65634891]
[1763943886894,18.12096,130.43,130.39,8.3763489]
[1763943887075,18.80096,130.43,130.4,5.65634891]
[1763943887588,18.12096,130.44,130.42,5.65634891]
[1763943887771,18.12096,130.44,130.43,5.65634891]
[1763943888288,0.68,130.46,130.43,5.65634891]
[1763943888463,0.68,130.49,130.45,5.65634891]
[1763943888667,0.2,130.5,130.47,5.65634891]
[1763943888870,0.88,130.5,130.47,5.65634891]
[1763943889098,0.88,130.5,130.45,1.99999999]
[1763943889099,0.88,130.5,130.46,5.65634891]
[1763943889267,0.68,130.49,130.46,5.65634891]
[1763943889895,18.80096,130.49,130.45,7.6563489]
[1763943890095,18.80096,130.49,130.43,0.72]
[1763943890096,0.68,130.49,130.44,7.6563489]
[1763943890484,0.68,130.49,130.44,5.65634891]
[1763943890679,18.12096,130.48,130.45,5.65634891]
[1763943891004,18.12096,130.48,130.47,5.65634891]
[1763943891498,0.2,130.5,130.47,5.65634891]
[1763943891676,18.12096,130.48,130.47,5.65634891]
[1763943891878,18.12096,130.48,130.45,7.6563489]
[1763943892092,18.80096,130.48,130.45,7.6563489]
[1763943892397,0.68,130.48,130.45,7.6563489]
[1763943893415,0.68,130.48,130.46,5.65634891]
[1763943893718,0.68,130.48,130.45,7.6563489]
[1763943896103,0.68,130.48,130.45,5.65634891]
[1763943896622,18.80096,130.48,130.44,5.65634891]
[1763943896977,18.80096,130.47,130.43,1.99999999]
[1763943897173,0.68,130.46,130.43,5.65634891]
[1763943897579,22.24096,130.48,130.44,5.65634891]
[1763943897777,22.24096,130.48,130.45,5.65634891]
[1763943898373,21.56096,130.48,130.45,5.65634891]
[1763943898600,0.68,130.47,130.45,5.65634891]
[1763943898804,0.68,130.47,130.43,8.3763489]
[1763943899003,18.12096,130.46,130.42,5.65634891]
[1763943899203,18.80096,130.47,130.42,1.99999999]
[1763943899405,18.80096,130.47,130.45,5.65634891]
[1763943899406,18.12096,130.47,130.45,5.65634891]
[1763943899586,18.12096,130.47,130.43,2.71999999]
[1763943899587,18.80096,130.47,130.43,2.71999999]
[1763943899786,18.12096,130.47,130.43,7.6563489]
[1763943900104,0.68,130.46,130.43,7.6563489]
[1763943900283,0.68,130.46,130.4,1.99999999]
[1763943900480,18.80096,130.46,130.41,5.65634891]
[1763943900680,18.80096,130.46,130.42,5.65634891]
[1763943900904,0.68,130.45,130.42,5.65634891]
[1763943901509,18.80096,130.45,130.42,5.65634891]
[1763943902180,18.80096,130.45,130.4,2.71999999]
[1763943902380,18.80096,130.45,130.41,6.37634891]
[1763943903102,18.80096,130.45,130.4,1.99999999]
[1763943903103,0.68,130.49,130.44,5.65634891]
[1763943903278,18.80096,130.49,130.45,5.65634891]
[1763943903616,18.12096,130.47,130.43,1.99999999]
[1763943903827,18.12096,130.47,130.43,5.65634891]
[1763943903987,0.68,130.46,130.43,5.65634891]
[1763943904485,0.68,130.46,130.42,1.99999999]
[1763943904688,0.68,130.46,130.41,5.65634891]
[1763943904888,18.12096,130.45,130.4,6.37634891]
[1763943905111,18.12096,130.45,130.4,8.3763489]
[1763943905314,22.24096,130.48,130.43,5.65634891]
[1763943905625,0.68,130.47,130.42,7.6563489]
[1763943905801,0.68,130.47,130.41,5.65634891]
[1763943906622,6.33634891,130.47,130.4,8.3763489]
[1763943906925,0.68,130.46,130.4,8.3763489]
[1763943907228,3.44,130.45,130.39,1.99999999]
[1763943907525,3.44,130.45,130.39,5.65634891]
[1763943907713,0.68,130.44,130.39,6.37634891]
[1763943908101,0.68,130.44,130.39,5.65634891]
[1763943908314,0.68,130.44,130.4,0.72]
[1763943908517,0.68,130.44,130.4,6.37634891]
[1763943908827,0.68,130.44,130.4,8.3763489]
[1763943909202,0.68,130.44,130.4,6.37634891]
[1763943909818,3.44,130.45,130.41,0.72]
[1763943910022,4.12,130.45,130.41,0.72]
[1763943910397,0.68,130.44,130.39,8.3763489]
[1763943910826,15.4451766,130.43,130.36,1.99999999]
[1763943911023,18.12096,130.42,130.36,7.6563489]
[1763943911227,24.45730891,130.42,130.36,7.6563489]
[1763943911528,0.68,130.43,130.38,7.6563489]
[1763943911726,5.65634891,130.41,130.34,1.99999999]
[1763943911907,5.65634891,130.41,130.36,1.99999999]
[1763943912106,6.33634891,130.41,130.36,1.99999999]
[1763943912307,0.68,130.4,130.36,1.99999999]
[1763943912718,0.68,130.4,130.36,2.71999999]
[1763943913030,0.68,130.4,130.35,5.65634891]
[1763943913230,0.68,130.4,130.36,1.99999999]
[1763943913627,6.33634891,130.4,130.35,2.71999999]
[1763943914015,0.68,130.39,130.35,0.72]
[1763943914327,0.68,130.39,130.34,1.99999999]
[1763943914530,0.68,130.39,130.34,2.71999999]
[1763943915325,0.68,130.39,130.34,1.99999999]
[1763943915326,6.33634891,130.39,130.34,1.99999999]
[1763943915740,0.67,130.38,130.34,1.99999999]
[1763943915946,9.09634891,130.37,130.31,18.12096]
[1763943916229,23.77730891,130.36,130.3,6.34634891]
[1763943916444,18.79096,130.36,130.3,6.34634891]
[1763943916745,0.67,130.35,130.3,6.34634891]
[1763943916947,0.67,130.35,130.3,0.69]
[1763943917134,0.67,130.35,130.31,1.99999999]
[1763943917442,0.67,130.35,130.31,2.68999999]
[1763943917946,3.44,130.37,130.33,7.6563489]
[1763943918235,3.44,130.37,130.34,5.65634891]
[1763943918409,3.44,130.37,130.35,0.69]
[1763943918609,3.44,130.37,130.34,5.65634891]
[1763943919043,3.44,130.37,130.33,8.3463489]
[1763943919349,4.11,130.4,130.34,2.68999999]
[1763943919645,22.23096,130.4,130.34,8.3463489]
[1763943920243,0.67,130.39,130.35,1.99999999]
[1763943920417,0.67,130.39,130.34,0.69]
[1763943921416,9.09634891,130.4,130.34,0.69]
[1763943921417,3.44,130.4,130.34,0.69]
[1763943921623,10.45882769,130.44,130.38,1.99999999]
[1763943921836,22.23096,130.44,130.38,8.3463489]
[1763943922137,18.79096,130.43,130.38,8.3463489]
[1763943922436,5.65634891,130.41,130.36,1.99999999]
[1763943922635,5.65634891,130.41,130.34,6.34634891]
[1763943922848,27.90978769,130.43,130.34,6.34634891]
[1763943922849,6.32634891,130.4,130.34,0.69]
[1763943923028,9.76634891,130.4,130.34,0.69]
[1763943923224,0.67,130.39,130.34,0.69]
[1763943923433,0.67,130.39,130.36,1.99999999]
[1763943924530,0.67,130.39,130.34,3.10596811]
[1763943925028,0.67,130.39,130.35,1.99999999]
[1763943925029,3.08596811,130.39,130.35,1.99999999]
[1763943925438,0.67,130.39,130.35,2.68999999]
[1763943925640,0.67,130.39,130.35,0.69]
[1763943925819,21.56096,130.4,130.35,1.99999999]
[1763943926028,21.56096,130.4,130.36,5.1059681]
[1763943926231,0.67,130.42,130.38,2.41596811]
[1763943926452,3.44,130.43,130.39,0.69]
[1763943926665,3.44,130.43,130.39,5.1059681]
[1763943926950,4.11,130.46,130.41,2.41596811]
[1763943927122,3.44,130.46,130.42,5.1059681]
[1763943927641,3.44,130.46,130.43,0.69]
[1763943927642,21.56096,130.46,130.43,0.69]
[1763943927841,0.67,130.45,130.41,2.68999999]
[1763943928037,0.67,130.45,130.4,1.99999999]
[1763943928550,24.44905975,130.45,130.39,8.34809974]
[1763943928939,0.67,130.45,130.41,1.99999999]
[1763943929148,3.44,130.46,130.42,8.34809974]
[1763943930043,0.67,130.47,130.43,0.69]
[1763943930226,0.67,130.47,130.44,1.99999999]
[1763943931250,3.44,130.48,130.44,2.68999999]
[1763943931441,4.11,130.48,130.44,2.68999999]
[1763943931753,4.11,130.48,130.44,1.99999999]
[1763943931934,6.32809975,130.47,130.4,1.99999999]
[1763943932256,5.65809975,130.46,130.4,7.65809974]
[1763943932449,0.67,130.46,130.42,1.99999999]
[1763943933354,6.32809975,130.46,130.4,8.34809974]
[1763943934552,0.67,130.46,130.4,8.34809974]
[1763943934755,18.12096,130.47,130.42,7.65809974]
[1763943935129,18.12096,130.47,130.43,6.34809975]
[1763943935455,18.12096,130.47,130.43,8.34809974]
[1763943935667,18.12096,130.47,130.44,0.69]
[1763943935959,18.12096,130.47,130.43,8.34809974]
[1763943936458,18.79096,130.47,130.43,8.34809974]
[1763943936659,18.79096,130.47,130.43,2.68999999]
[1763943938144,18.12096,130.47,130.43,2.68999999]
[1763943939460,18.79096,130.47,130.43,2.68999999]
[1763943939959,18.12096,130.47,130.43,7.65809974]
[1763943940130,18.12096,130.47,130.44,0.69]
[1763943940750,18.79096,130.47,130.43,1.99999999]
[1763943940954,18.79096,130.47,130.43,2.68999999]
[1763943941229,18.12096,130.47,130.43,1.99999999]
[1763943941636,18.12096,130.47,130.44,0.69]
[1763943941838,18.12096,130.49,130.45,1.99999999]
[1763943942049,4.29,130.5,130.45,7.65809974]
[1763943942334,18.12096,130.48,130.46,0.69]
[1763943943048,18.12096,130.48,130.44,9.62315136]
[1763943943049,18.12096,130.48,130.44,1.99999999]
[1763943943236,18.79096,130.48,130.44,2.68999999]
[1763943943566,0.66,130.47,130.43,1.99999999]
[1763943943772,0.66,130.47,130.43,2.71999999]
[1763943943938,0.66,130.47,130.43,0.72]
[1763943944132,0.66,130.47,130.43,2.71999999]
[1763943944733,0.66,130.47,130.43,0.72]
[1763943944941,0.66,130.47,130.43,2.71999999]
[1763943946042,0.66,130.47,130.43,0.72]
[1763943946456,0.66,130.47,130.41,1.99999999]
[1763943946457,18.12096,130.45,130.41,1.99999999]
[1763943946654,18.12096,130.45,130.4,12.32315135]
[1763943946936,18.77096,130.45,130.4,12.32315135]
[1763943947151,18.77096,130.45,130.41,0.7]
[1763943947453,18.12096,130.45,130.42,1.99999999]
[1763943947847,18.12096,130.45,130.42,2.69999999]
[1763943948046,18.12096,130.45,130.4,11.62315135]
[1763943948362,18.77096,130.45,130.4,11.62315135]
[1763943948564,18.77096,130.45,130.41,0.7]
[1763943949073,0.65,130.44,130.4,1.99999999]
[1763943949272,0.65,130.44,130.4,2.69999999]
[1763943950275,18.12096,130.45,130.41,0.7]
[1763943950577,18.12096,130.44,130.41,2.69999999]
[1763943951560,18.12096,130.44,130.4,3.77154357]
[1763943951561,18.77096,130.44,130.4,1.99999999]
[1763943951862,0.65,130.44,130.4,1.99999999]
[1763943952071,0.65,130.44,130.41,0.7]
[1763943953190,4.42154357,130.44,130.39,1.99999999]
[1763943953357,0.65,130.43,130.39,1.99999999]
[1763943953554,0.65,130.43,130.4,0.7]
[1763943953859,3.77154357,130.44,130.39,1.99999999]
[1763943954069,0.65,130.43,130.39,2.69999999]
[1763943954382,0.65,130.43,130.39,0.7]
[1763943955380,18.12096,130.39,130.34,0.7]
[1763943955560,18.12096,130.39,130.34,2.69999999]
[1763943955758,18.77096,130.39,130.34,2.69999999]
[1763943955975,18.77096,130.39,130.35,0.7]
[1763943956573,22.54250357,130.39,130.35,1.99999999]
[1763943957084,22.54250357,130.39,130.34,0.7]
[1763943957294,22.54250357,130.39,130.35,0.7]
[1763943958373,18.77096,130.39,130.35,2.69999999]
[1763943958598,18.77096,130.39,130.35,0.7]
[1763943960970,18.12096,130.39,130.35,6.47154356]
[1763943961176,4.07,130.42,130.37,1.99999999]
[1763943961392,18.12096,130.4,130.36,6.47154356]
[1763943961589,18.12096,130.4,130.37,5.77154356]
[1763943961777,3.42,130.42,130.37,6.47154356]
[1763943961965,18.12096,130.4,130.38,0.7]
[1763943962159,3.42,130.42,130.39,5.77154356]
[1763943962366,3.42,130.45,130.4,5.77154356]
[1763943962666,18.12096,130.43,130.4,0.7]
[1763943962876,18.12096,130.43,130.39,1.99999999]
[1763943962877,18.12096,130.43,130.39,2.69999999]
[1763943963078,18.12096,130.43,130.4,6.47154356]
[1763943963280,3.42,130.45,130.42,3.77154357]
[1763943963470,3.42,130.45,130.41,5.77154356]
[1763943963678,18.12096,130.44,130.42,0.7]
[1763943964278,3.42,130.45,130.42,0.7]
[1763943964583,3.42,130.45,130.42,4.47154357]
[1763943964795,3.42,130.45,130.44,1.99999999]
[1763943964995,7.84154357,130.48,130.44,1.99999999]
[1763943965182,7.84154357,130.48,130.37,17.45902896]
[1763943965183,0.65,130.47,130.41,6.47154356]
[1763943965386,4.42154357,130.47,130.41,6.47154356]
[1763943965583,4.42154357,130.47,130.42,0.7]
[1763943965799,22.54250357,130.47,130.42,0.7]
[1763943966002,22.54250357,130.47,130.37,9.78882769]
[1763943966003,18.12096,130.44,130.4,5.77154356]
[1763943966187,18.12096,130.44,130.39,0.7]
[1763943966188,18.12096,130.44,130.39,6.47154356]
[1763943966387,18.77096,130.44,130.39,6.47154356]
[1763943966600,0.65,130.44,130.4,0.7]
[1763943966919,11.08405874,130.48,130.41,3.77154357]
[1763943966920,3.42,130.48,130.41,3.77154357]
[1763943967205,18.12096,130.47,130.42,3.77154357]
[1763943967435,4.07,130.48,130.43,3.77154357]
[1763943967577,4.62154357,130.5,130.44,5.77154356]
[1763943967777,3.42,130.49,130.45,5.77154356]
[1763943967988,0.2,130.5,130.48,3.77154357]
[1763943968191,0.2,130.5,130.49,5.77154356]
[1763943968393,0.2,130.5,130.49,6.47154356]